[Event "November 21 Late 2023"]
[Site "https://www.chess.com"]
[Date "2023.11.21"]
[Round "2"]
[White "Pinto, Daniel"]
[Black "Szpar, Milosz"]
[Result "1-0"]
[Board "47"]
[TimeControl "180+1"]
[WhiteFideId "3303144"]
[BlackFideId "1184989"]
[WhiteElo "2149"]
[BlackElo "2446"]
[WhiteTeam "BOL"]
[BlackTeam "POL"]
[WhiteClock "0:00:06"]
[BlackClock "0:00:05"]

1. e4 {[%clk 0:03:00]}  e6 {[%clk 0:02:59]} 2. d4 {[%clk 0:02:59]}  d5 {[%clk 0:02:59]} 3. Nd2 {[%clk 0:02:59]}  Be7 {[%clk 0:02:58]} 4. Ngf3 {[%clk 0:02:58]}  Nf6 {[%clk 0:02:58]} 5. Bd3 {[%clk 0:02:59]}  c5 {[%clk 0:02:57]} 6. exd5 {[%clk 0:02:56]}  Qxd5 {[%clk 0:02:52]} 7. dxc5 {[%clk 0:02:49]}  O-O {[%clk 0:02:50]} 8. Nb3 {[%clk 0:02:36]}  Nbd7 {[%clk 0:02:47]} 9. O-O {[%clk 0:02:34]}  e5 {[%clk 0:02:34]} 10. Be2 {[%clk 0:02:03]}  Qc6 {[%clk 0:02:13]} 11. Re1 {[%clk 0:01:43]}  Qc7 {[%clk 0:02:02]} 12. Bd3 {[%clk 0:01:18]}  Bxc5 {[%clk 0:01:53]} 13. Nxc5 {[%clk 0:01:18]}  Qxc5 {[%clk 0:01:54]} 14. Qe2 {[%clk 0:01:07]}  Re8 {[%clk 0:01:43]} 15. Ng5 {[%clk 0:00:54]}  h6 {[%clk 0:01:37]} 16. Ne4 {[%clk 0:00:54]}  Nxe4 {[%clk 0:01:37]} 17. Bxe4 {[%clk 0:00:40]}  Nf6 {[%clk 0:01:37]} 18. c3 {[%clk 0:00:40]}  Bg4 {[%clk 0:01:36]} 19. Bf3 {[%clk 0:00:37]}  Bf5 {[%clk 0:01:29]} 20. Be3 {[%clk 0:00:22]}  Qc7 {[%clk 0:01:27]} 21. g3 {[%clk 0:00:19]}  e4 {[%clk 0:01:05]} 22. Bg2 {[%clk 0:00:19]}  Bg4 {[%clk 0:01:05]} 23. Qb5 {[%clk 0:00:18]}  a6 {[%clk 0:00:55]} 24. Qb3 {[%clk 0:00:17]}  Bf3 {[%clk 0:00:47]} 25. Qb6 {[%clk 0:00:13]}  Qd7 {[%clk 0:00:46]} 26. Qd4 {[%clk 0:00:12]}  Qf5 {[%clk 0:00:45]} 27. Qc5 {[%clk 0:00:10]}  Re5 {[%clk 0:00:45]} 28. Qc7 {[%clk 0:00:08]}  Bxg2 {[%clk 0:00:42]} 29. Kxg2 {[%clk 0:00:08]}  Qf3+ {[%clk 0:00:42]} 30. Kg1 {[%clk 0:00:08]}  Rh5 {[%clk 0:00:43]} 31. Qf4 {[%clk 0:00:05]}  Qg4 {[%clk 0:00:38]} 32. Qxg4 {[%clk 0:00:03]}  Nxg4 {[%clk 0:00:39]} 33. Bd4 {[%clk 0:00:03]}  Nxh2 {[%clk 0:00:38]} 34. Rxe4 {[%clk 0:00:02]}  Nf3+ {[%clk 0:00:39]} 35. Kg2 {[%clk 0:00:03]}  Ng5 {[%clk 0:00:29]} 36. Re5 {[%clk 0:00:03]}  g6 {[%clk 0:00:22]} 37. Rae1 {[%clk 0:00:03]}  Ne6 {[%clk 0:00:17]} 38. Rxh5 {[%clk 0:00:02]}  gxh5 {[%clk 0:00:18]} 39. Be3 {[%clk 0:00:03]}  Kh7 {[%clk 0:00:18]} 40. Rd1 {[%clk 0:00:04]}  Rc8 {[%clk 0:00:18]} 41. Rd7 {[%clk 0:00:04]}  Kg6 {[%clk 0:00:18]} 42. Rxb7 {[%clk 0:00:04]}  Rc6 {[%clk 0:00:19]} 43. Rb6 {[%clk 0:00:04]}  Rc4 {[%clk 0:00:17]} 44. Rxa6 {[%clk 0:00:04]}  h4 {[%clk 0:00:18]} 45. Rb6 {[%clk 0:00:02]}  Ra4 {[%clk 0:00:17]} 46. a3 {[%clk 0:00:02]}  Kh5 {[%clk 0:00:17]} 47. Rb4 {[%clk 0:00:02]}  Ra5 {[%clk 0:00:14]} 48. Rxh4+ {[%clk 0:00:02]}  Kg6 {[%clk 0:00:14]} 49. Rxh6+ {[%clk 0:00:03]}  Kf5 {[%clk 0:00:15]} 50. Rh5+ {[%clk 0:00:03]}  Ke4 {[%clk 0:00:10]} 51. Rxa5 {[%clk 0:00:04]}  Kd3 {[%clk 0:00:04]} 52. Rf5 {[%clk 0:00:04]}  Kc2 {[%clk 0:00:04]} 53. Rxf7 {[%clk 0:00:04]}  Kxb2 {[%clk 0:00:04]} 54. Re7 {[%clk 0:00:04]}  Nd8 {[%clk 0:00:04]} 55. Rd7 {[%clk 0:00:03]}  Nc6 {[%clk 0:00:04]} 56. Rb7+ {[%clk 0:00:04]}  Kxa3 {[%clk 0:00:04]} 57. c4 {[%clk 0:00:04]}  Ka4 {[%clk 0:00:04]} 58. c5 {[%clk 0:00:04]}  Ne5 {[%clk 0:00:05]} 59. Rb6 {[%clk 0:00:05]}  Nd3 {[%clk 0:00:04]} 60. g4 {[%clk 0:00:05]}  Ne1+ {[%clk 0:00:05]} 61. Kg3 {[%clk 0:00:05]}  Nd3 {[%clk 0:00:06]} 62. g5 {[%clk 0:00:06]}  Ne5 {[%clk 0:00:05]} 63. Kf4 {[%clk 0:00:06]} 1-0

[Event "November 21 Late 2023"]
[Site "https://www.chess.com"]
[Date "2023.11.21"]
[Round "2"]
[White "Vasquez Schroeder, Rodrigo"]
[Black "D`Arruda, Ricardo D."]
[Result "1-0"]
[Board "48"]
[TimeControl "180+1"]
[WhiteFideId "3400042"]
[BlackFideId "100692"]
[WhiteElo "2582"]
[BlackElo "2529"]
[WhiteTeam "CHI"]
[BlackTeam "ARG"]
[WhiteClock "0:00:19"]
[BlackClock "0:00:00"]

1. e4 {[%clk 0:03:00]}  c5 {[%clk 0:02:51]} 2. Nf3 {[%clk 0:02:53]}  Nc6 {[%clk 0:02:50]} 3. Bb5 {[%clk 0:02:49]}  g6 {[%clk 0:02:48]} 4. c3 {[%clk 0:02:48]}  Bg7 {[%clk 0:02:48]} 5. d4 {[%clk 0:02:46]}  cxd4 {[%clk 0:02:43]} 6. cxd4 {[%clk 0:02:46]}  a6 {[%clk 0:02:26]} 7. Ba4 {[%clk 0:02:34]}  b5 {[%clk 0:02:24]} 8. Bb3 {[%clk 0:02:33]}  Na5 {[%clk 0:02:21]} 9. Bc2 {[%clk 0:02:27]}  Nf6 {[%clk 0:02:20]} 10. O-O {[%clk 0:02:23]}  Bb7 {[%clk 0:02:18]} 11. Re1 {[%clk 0:02:23]}  O-O {[%clk 0:02:17]} 12. Nbd2 {[%clk 0:02:22]}  Rc8 {[%clk 0:02:16]} 13. a3 {[%clk 0:02:20]}  d6 {[%clk 0:02:11]} 14. Bd3 {[%clk 0:02:12]}  Nc4 {[%clk 0:02:09]} 15. Nf1 {[%clk 0:02:11]}  Qb6 {[%clk 0:02:03]} 16. b3 {[%clk 0:02:03]}  Na5 {[%clk 0:02:00]} 17. Bb2 {[%clk 0:01:50]}  d5 {[%clk 0:01:47]} 18. e5 {[%clk 0:01:37]}  Ne4 {[%clk 0:01:46]} 19. Ng3 {[%clk 0:01:34]}  Nxg3 {[%clk 0:01:42]} 20. hxg3 {[%clk 0:01:33]}  e6 {[%clk 0:01:31]} 21. g4 {[%clk 0:01:29]}  h6 {[%clk 0:01:31]} 22. Rb1 {[%clk 0:01:27]}  Nc6 {[%clk 0:01:27]} 23. Qd2 {[%clk 0:01:22]}  Rfe8 {[%clk 0:01:25]} 24. g3 {[%clk 0:01:12]}  b4 {[%clk 0:01:04]} 25. a4 {[%clk 0:01:05]}  a5 {[%clk 0:00:54]} 26. Qe2 {[%clk 0:01:01]}  Nb8 {[%clk 0:00:50]} 27. Kg2 {[%clk 0:00:58]}  Ba6 {[%clk 0:00:50]} 28. Rbc1 {[%clk 0:00:58]}  Bxd3 {[%clk 0:00:48]} 29. Qxd3 {[%clk 0:00:57]}  Qa6 {[%clk 0:00:47]} 30. Qxa6 {[%clk 0:00:49]}  Nxa6 {[%clk 0:00:48]} 31. Kf1 {[%clk 0:00:49]}  Bf8 {[%clk 0:00:48]} 32. Ke2 {[%clk 0:00:49]}  Be7 {[%clk 0:00:47]} 33. Kd3 {[%clk 0:00:49]}  Kg7 {[%clk 0:00:42]} 34. Rh1 {[%clk 0:00:44]}  Nb8 {[%clk 0:00:34]} 35. Ng1 {[%clk 0:00:42]}  Nd7 {[%clk 0:00:22]} 36. f4 {[%clk 0:00:39]}  Nb6 {[%clk 0:00:18]} 37. Ne2 {[%clk 0:00:36]}  Rxc1 {[%clk 0:00:18]} 38. Bxc1 {[%clk 0:00:36]}  Rc8 {[%clk 0:00:19]} 39. f5 {[%clk 0:00:31]}  gxf5 {[%clk 0:00:07]} 40. Bxh6+ {[%clk 0:00:27]}  Kg8 {[%clk 0:00:03]} 41. gxf5 {[%clk 0:00:26]}  exf5 {[%clk 0:00:00]} 42. Rh5 {[%clk 0:00:19]} 1-0

[Event "November 21 Late 2023"]
[Site "https://www.chess.com"]
[Date "2023.11.21"]
[Round "2"]
[White "Hajiyev, Kanan"]
[Black "Xu, Yi"]
[Result "0-1"]
[Board "49"]
[TimeControl "180+1"]
[WhiteFideId "13404148"]
[BlackFideId "8605564"]
[WhiteElo "2102"]
[BlackElo "2460"]
[WhiteTeam "AZE"]
[BlackTeam "CHN"]
[WhiteClock "0:00:00"]
[BlackClock "0:01:32"]

1. d4 {[%clk 0:03:00]}  Nf6 {[%clk 0:02:58]} 2. Nf3 {[%clk 0:03:01]}  d5 {[%clk 0:02:57]} 3. c4 {[%clk 0:03:01]}  e6 {[%clk 0:02:56]} 4. cxd5 {[%clk 0:03:02]}  exd5 {[%clk 0:02:56]} 5. Nc3 {[%clk 0:03:03]}  Bb4 {[%clk 0:02:55]} 6. Qc2 {[%clk 0:03:03]}  O-O {[%clk 0:02:50]} 7. Bg5 {[%clk 0:03:01]}  h6 {[%clk 0:02:49]} 8. Bh4 {[%clk 0:03:01]}  c5 {[%clk 0:02:47]} 9. a3 {[%clk 0:02:58]}  Bxc3+ {[%clk 0:02:44]} 10. bxc3 {[%clk 0:02:58]}  g5 {[%clk 0:02:43]} 11. Bg3 {[%clk 0:02:45]}  Ne4 {[%clk 0:02:42]} 12. e3 {[%clk 0:02:32]}  Bf5 {[%clk 0:02:42]} 13. Qb2 {[%clk 0:02:09]}  Qb6 {[%clk 0:02:32]} 14. Qc1 {[%clk 0:01:42]}  Nc6 {[%clk 0:02:17]} 15. Be2 {[%clk 0:01:19]}  cxd4 {[%clk 0:02:10]} 16. exd4 {[%clk 0:00:50]}  Na5 {[%clk 0:02:05]} 17. Rb1 {[%clk 0:00:40]}  Qe6 {[%clk 0:01:58]} 18. Kf1 {[%clk 0:00:18]}  Rac8 {[%clk 0:01:51]} 19. Rb5 {[%clk 0:00:02]}  Nxc3 {[%clk 0:01:44]} 20. Qd2 {[%clk 0:00:00]}  Nxb5 {[%clk 0:01:32]} 0-1

[Event "November 21 Late 2023"]
[Site "https://www.chess.com"]
[Date "2023.11.21"]
[Round "2"]
[White "Stoyanov, Tsvetan"]
[Black "Kuegel, Tobias"]
[Result "1-0"]
[Board "50"]
[TimeControl "180+1"]
[WhiteFideId "2917173"]
[BlackFideId "4636295"]
[WhiteElo "2390"]
[BlackElo "2213"]
[WhiteTeam "BUL"]
[BlackTeam "GER"]
[WhiteClock "0:00:16"]
[BlackClock "0:00:00"]

1. Nf3 {[%clk 0:02:58]}  d5 {[%clk 0:02:59]} 2. g3 {[%clk 0:02:58]}  Nf6 {[%clk 0:02:58]} 3. Bg2 {[%clk 0:02:59]}  e6 {[%clk 0:02:59]} 4. O-O {[%clk 0:02:57]}  Be7 {[%clk 0:03:00]} 5. d4 {[%clk 0:02:57]}  O-O {[%clk 0:03:00]} 6. c4 {[%clk 0:02:58]}  dxc4 {[%clk 0:03:00]} 7. Qc2 {[%clk 0:02:54]}  a6 {[%clk 0:02:54]} 8. a4 {[%clk 0:02:50]}  Bd7 {[%clk 0:02:52]} 9. Qxc4 {[%clk 0:02:44]}  Bc6 {[%clk 0:02:52]} 10. Nc3 {[%clk 0:02:43]}  b5 {[%clk 0:02:27]} 11. Qb3 {[%clk 0:02:43]}  b4 {[%clk 0:02:20]} 12. Nb1 {[%clk 0:02:43]}  Bd5 {[%clk 0:02:07]} 13. Qd1 {[%clk 0:02:42]}  c5 {[%clk 0:01:58]} 14. dxc5 {[%clk 0:02:31]}  Nbd7 {[%clk 0:01:48]} 15. Be3 {[%clk 0:02:11]}  Bxc5 {[%clk 0:01:30]} 16. Bxc5 {[%clk 0:02:04]}  Nxc5 {[%clk 0:01:31]} 17. Nbd2 {[%clk 0:02:03]}  a5 {[%clk 0:01:25]} 18. Qe1 {[%clk 0:01:52]}  Qb6 {[%clk 0:01:16]} 19. Nh4 {[%clk 0:01:50]}  Bxg2 {[%clk 0:01:11]} 20. Nxg2 {[%clk 0:01:50]}  Rfd8 {[%clk 0:01:08]} 21. Ne3 {[%clk 0:01:49]}  Nfe4 {[%clk 0:00:51]} 22. Ndc4 {[%clk 0:01:47]}  Qa6 {[%clk 0:00:46]} 23. f3 {[%clk 0:01:41]}  Nd6 {[%clk 0:00:33]} 24. Nd2 {[%clk 0:01:33]}  Qb6 {[%clk 0:00:29]} 25. Qf2 {[%clk 0:01:31]}  Rab8 {[%clk 0:00:24]} 26. Nec4 {[%clk 0:01:27]}  Nxc4 {[%clk 0:00:23]} 27. Nxc4 {[%clk 0:01:28]}  Qa7 {[%clk 0:00:16]} 28. Rad1 {[%clk 0:01:23]}  Qc7 {[%clk 0:00:13]} 29. Qe3 {[%clk 0:00:31]}  Nxa4 {[%clk 0:00:12]} 30. Rc1 {[%clk 0:00:31]}  Qc5 {[%clk 0:00:11]} 31. Qxc5 {[%clk 0:00:29]}  Nxc5 {[%clk 0:00:12]} 32. Nxa5 {[%clk 0:00:30]}  Rb5 {[%clk 0:00:12]} 33. Nc6 {[%clk 0:00:29]}  Rd2 {[%clk 0:00:11]} 34. Rfd1 {[%clk 0:00:27]}  Rxd1+ {[%clk 0:00:10]} 35. Rxd1 {[%clk 0:00:27]}  g6 {[%clk 0:00:08]} 36. Ne5 {[%clk 0:00:16]}  b3 {[%clk 0:00:07]} 37. Rd8+ {[%clk 0:00:15]}  Kg7 {[%clk 0:00:07]} 38. Rc8 {[%clk 0:00:15]}  Na4 {[%clk 0:00:07]} 39. Nd3 {[%clk 0:00:16]}  Rb7 {[%clk 0:00:03]} 40. Rc4 {[%clk 0:00:16]}  Ra7 {[%clk 0:00:02]} 41. Rb4 {[%clk 0:00:16]}  Kf6 {[%clk 0:00:01]} 42. Rxb3 {[%clk 0:00:16]}  Ra6 {[%clk 0:00:01]} 43. Rb4 {[%clk 0:00:16]}  Nb6 {[%clk 0:00:01]} 44. Kf2 {[%clk 0:00:16]}  Ra1 {[%clk 0:00:00]} 45. Rxb6 {[%clk 0:00:16]} 1-0

[Event "November 21 Late 2023"]
[Site "https://www.chess.com"]
[Date "2023.11.21"]
[Round "2"]
[White "BardArtem"]
[Black "Richter, Paul"]
[Result "0-1"]
[Board "53"]
[TimeControl "180+1"]
[BlackFideId "2046350"]
[WhiteElo "2807"]
[BlackElo "2520"]
[BlackTeam "USA"]
[WhiteClock "0:00:00"]
[BlackClock "0:00:18"]

1. e4 {[%clk 0:03:00]}  c5 {[%clk 0:02:59]} 2. c3 {[%clk 0:02:59]}  g6 {[%clk 0:02:59]} 3. d4 {[%clk 0:02:58]}  cxd4 {[%clk 0:03:00]} 4. cxd4 {[%clk 0:02:58]}  d5 {[%clk 0:03:00]} 5. e5 {[%clk 0:02:58]}  Nc6 {[%clk 0:02:59]} 6. Nc3 {[%clk 0:02:58]}  Nh6 {[%clk 0:03:00]} 7. h3 {[%clk 0:02:58]}  Bg7 {[%clk 0:03:00]} 8. Nf3 {[%clk 0:02:58]}  O-O {[%clk 0:03:00]} 9. Bb5 {[%clk 0:02:56]}  f6 {[%clk 0:02:58]} 10. Bxc6 {[%clk 0:02:55]}  bxc6 {[%clk 0:02:58]} 11. O-O {[%clk 0:02:56]}  Nf7 {[%clk 0:02:44]} 12. exf6 {[%clk 0:02:36]}  exf6 {[%clk 0:02:43]} 13. Bf4 {[%clk 0:02:36]}  Re8 {[%clk 0:02:39]} 14. Qd2 {[%clk 0:02:35]}  Nd6 {[%clk 0:02:36]} 15. Rfe1 {[%clk 0:02:30]}  Ne4 {[%clk 0:02:34]} 16. Qc2 {[%clk 0:02:29]}  Bf5 {[%clk 0:02:20]} 17. Nh4 {[%clk 0:02:20]}  Bd7 {[%clk 0:02:10]} 18. Bh2 {[%clk 0:02:02]}  g5 {[%clk 0:01:51]} 19. Nf3 {[%clk 0:01:59]}  Bf5 {[%clk 0:01:51]} 20. Nxe4 {[%clk 0:01:52]}  dxe4 {[%clk 0:01:40]} 21. Nd2 {[%clk 0:01:32]}  Qxd4 {[%clk 0:01:39]} 22. Rad1 {[%clk 0:01:32]}  e3 {[%clk 0:01:15]} 23. Qb3+ {[%clk 0:01:20]}  Be6 {[%clk 0:01:08]} 24. Qxe3 {[%clk 0:01:13]}  Qxe3 {[%clk 0:01:08]} 25. Rxe3 {[%clk 0:01:14]}  Bxa2 {[%clk 0:01:08]} 26. Ra3 {[%clk 0:01:10]}  Bd5 {[%clk 0:01:08]} 27. Rda1 {[%clk 0:01:10]}  f5 {[%clk 0:01:07]} 28. Rb1 {[%clk 0:00:45]}  Re2 {[%clk 0:01:00]} 29. Nf1 {[%clk 0:00:43]}  Rxb2 {[%clk 0:00:54]} 30. Re1 {[%clk 0:00:33]}  f4 {[%clk 0:00:47]} 31. h4 {[%clk 0:00:18]}  Bd4 {[%clk 0:00:38]} 32. Kh1 {[%clk 0:00:07]}  Bxf2 {[%clk 0:00:37]} 33. Re5 {[%clk 0:00:05]}  Bxh4 {[%clk 0:00:24]} 34. Ra5 {[%clk 0:00:00]}  h6 {[%clk 0:00:18]} 0-1

[Event "November 21 Late 2023"]
[Site "https://www.chess.com"]
[Date "2023.11.21"]
[Round "2"]
[White "Horak, Martin"]
[Black "Margvelashvili, Giorgi"]
[Result "0-1"]
[Board "57"]
[TimeControl "180+1"]
[WhiteFideId "367095"]
[BlackFideId "13602926"]
[WhiteElo "2091"]
[BlackElo "2549"]
[WhiteTeam "CZE"]
[BlackTeam "GEO"]
[WhiteClock "0:00:00"]
[BlackClock "0:00:15"]

1. e4 {[%clk 0:03:00]}  c6 {[%clk 0:02:59]} 2. Nf3 {[%clk 0:03:00]}  d5 {[%clk 0:03:00]} 3. Nc3 {[%clk 0:03:01]}  Bg4 {[%clk 0:02:58]} 4. Be2 {[%clk 0:02:59]}  e6 {[%clk 0:02:57]} 5. d4 {[%clk 0:02:58]}  Nf6 {[%clk 0:02:54]} 6. e5 {[%clk 0:02:58]}  Nfd7 {[%clk 0:02:49]} 7. Ng5 {[%clk 0:02:58]}  Bxe2 {[%clk 0:02:46]} 8. Qxe2 {[%clk 0:02:59]}  g6 {[%clk 0:02:28]} 9. Qf3 {[%clk 0:02:52]}  Qe7 {[%clk 0:02:25]} 10. h4 {[%clk 0:02:51]}  h6 {[%clk 0:02:17]} 11. Nh3 {[%clk 0:02:35]}  Qxh4 {[%clk 0:02:15]} 12. Be3 {[%clk 0:02:31]}  Bb4 {[%clk 0:02:01]} 13. O-O-O {[%clk 0:02:26]}  Qe7 {[%clk 0:01:21]} 14. g4 {[%clk 0:01:59]}  Bxc3 {[%clk 0:01:18]} 15. bxc3 {[%clk 0:01:59]}  Na6 {[%clk 0:01:13]} 16. Ng1 {[%clk 0:01:55]}  O-O-O {[%clk 0:00:59]} 17. Rxh6 {[%clk 0:01:29]}  Rxh6 {[%clk 0:00:59]} 18. Bxh6 {[%clk 0:01:30]}  Nc7 {[%clk 0:00:59]} 19. Ne2 {[%clk 0:01:28]}  Nb5 {[%clk 0:00:57]} 20. Rh1 {[%clk 0:01:07]}  Nb6 {[%clk 0:00:41]} 21. Kb1 {[%clk 0:00:38]}  Nc4 {[%clk 0:00:39]} 22. Bc1 {[%clk 0:00:34]}  Nba3+ {[%clk 0:00:30]} 23. Ka1 {[%clk 0:00:34]}  Nxc2+ {[%clk 0:00:30]} 24. Kb1 {[%clk 0:00:34]}  N2a3+ {[%clk 0:00:30]} 25. Ka1 {[%clk 0:00:34]}  Nb5 {[%clk 0:00:31]} 26. Rh7 {[%clk 0:00:31]}  Rd7 {[%clk 0:00:30]} 27. Qd3 {[%clk 0:00:22]}  a5 {[%clk 0:00:27]} 28. f4 {[%clk 0:00:22]}  Kc7 {[%clk 0:00:27]} 29. f5 {[%clk 0:00:22]}  gxf5 {[%clk 0:00:27]} 30. gxf5 {[%clk 0:00:23]}  exf5 {[%clk 0:00:26]} 31. Qxf5 {[%clk 0:00:23]}  Qe6 {[%clk 0:00:26]} 32. Qxe6 {[%clk 0:00:19]}  fxe6 {[%clk 0:00:27]} 33. Rh6 {[%clk 0:00:19]}  Rf7 {[%clk 0:00:23]} 34. Nf4 {[%clk 0:00:17]}  Nxc3 {[%clk 0:00:19]} 35. Rxe6 {[%clk 0:00:13]}  Rh7 {[%clk 0:00:19]} 36. Rg6 {[%clk 0:00:05]}  Rh1 {[%clk 0:00:17]} 37. Nd3 {[%clk 0:00:05]}  Rh2 {[%clk 0:00:17]} 38. Nb2 {[%clk 0:00:00]}  Na3 {[%clk 0:00:15]} 0-1

[Event "November 21 Late 2023"]
[Site "https://www.chess.com"]
[Date "2023.11.21"]
[Round "2"]
[White "Krzyzanowski, Marcin"]
[Black "TheAlienParty"]
[Result "1-0"]
[Board "65"]
[TimeControl "180+1"]
[WhiteFideId "1132199"]
[WhiteElo "2471"]
[BlackElo "2389"]
[WhiteTeam "POL"]
[WhiteClock "0:01:54"]
[BlackClock "0:00:07"]

1. e4 {[%clk 0:03:00]}  e5 {[%clk 0:02:48]} 2. Nf3 {[%clk 0:03:00]}  Nc6 {[%clk 0:02:48]} 3. Bc4 {[%clk 0:03:00]}  Bc5 {[%clk 0:02:48]} 4. c3 {[%clk 0:02:59]}  Nf6 {[%clk 0:02:47]} 5. d3 {[%clk 0:02:58]}  O-O {[%clk 0:02:45]} 6. O-O {[%clk 0:02:58]}  d5 {[%clk 0:02:45]} 7. exd5 {[%clk 0:02:57]}  Nxd5 {[%clk 0:02:45]} 8. Re1 {[%clk 0:02:58]}  Bg4 {[%clk 0:02:43]} 9. h3 {[%clk 0:02:58]}  Bh5 {[%clk 0:02:43]} 10. a4 {[%clk 0:02:59]}  a5 {[%clk 0:02:42]} 11. Nbd2 {[%clk 0:02:58]}  Nb6 {[%clk 0:02:19]} 12. Bb5 {[%clk 0:02:56]}  Kh8 {[%clk 0:02:10]} 13. Ne4 {[%clk 0:02:55]}  Nd7 {[%clk 0:02:04]} 14. Bxc6 {[%clk 0:02:47]}  bxc6 {[%clk 0:02:03]} 15. Nxc5 {[%clk 0:02:46]}  Bxf3 {[%clk 0:01:57]} 16. Qxf3 {[%clk 0:02:45]}  Nxc5 {[%clk 0:01:57]} 17. Rxe5 {[%clk 0:02:33]}  Nxd3 {[%clk 0:01:52]} 18. Rh5 {[%clk 0:02:34]}  Nxc1 {[%clk 0:01:45]} 19. Rxc1 {[%clk 0:02:35]}  Qd2 {[%clk 0:01:38]} 20. Rd1 {[%clk 0:02:28]}  Qxb2 {[%clk 0:01:37]} 21. Qf5 {[%clk 0:02:13]}  g6 {[%clk 0:01:30]} 22. Qf6+ {[%clk 0:02:12]}  Kg8 {[%clk 0:01:28]} 23. Rxh7 {[%clk 0:02:12]}  Kxh7 {[%clk 0:01:25]} 24. Rd4 {[%clk 0:02:12]}  Qc1+ {[%clk 0:01:19]} 25. Kh2 {[%clk 0:02:11]}  c5 {[%clk 0:01:10]} 26. Rh4+ {[%clk 0:02:10]}  Qh6 {[%clk 0:01:09]} 27. Rxh6+ {[%clk 0:02:07]}  Kxh6 {[%clk 0:01:09]} 28. f4 {[%clk 0:02:07]}  Kh7 {[%clk 0:01:01]} 29. f5 {[%clk 0:02:04]}  Rae8 {[%clk 0:00:52]} 30. Qh4+ {[%clk 0:02:02]}  Kg8 {[%clk 0:00:47]} 31. Qh6 {[%clk 0:02:00]}  gxf5 {[%clk 0:00:43]} 32. Qg5+ {[%clk 0:02:01]}  Kh7 {[%clk 0:00:42]} 33. Qxf5+ {[%clk 0:02:00]}  Kg7 {[%clk 0:00:42]} 34. Qg5+ {[%clk 0:01:59]}  Kh7 {[%clk 0:00:41]} 35. Qxc5 {[%clk 0:02:00]}  Ra8 {[%clk 0:00:28]} 36. Qh5+ {[%clk 0:02:00]}  Kg7 {[%clk 0:00:28]} 37. Qg5+ {[%clk 0:02:01]}  Kh7 {[%clk 0:00:28]} 38. Qf5+ {[%clk 0:02:02]}  Kg7 {[%clk 0:00:28]} 39. Qg4+ {[%clk 0:02:02]}  Kh7 {[%clk 0:00:28]} 40. Qh4+ {[%clk 0:02:03]}  Kg7 {[%clk 0:00:28]} 41. Qg3+ {[%clk 0:02:04]}  Kh7 {[%clk 0:00:28]} 42. Qxc7 {[%clk 0:02:05]}  Ra6 {[%clk 0:00:26]} 43. Qc4 {[%clk 0:02:04]}  Rg6 {[%clk 0:00:24]} 44. Qh4+ {[%clk 0:02:03]}  Kg7 {[%clk 0:00:22]} 45. Qd4+ {[%clk 0:02:03]}  Kh7 {[%clk 0:00:22]} 46. h4 {[%clk 0:02:04]}  Rfg8 {[%clk 0:00:21]} 47. Qe4 {[%clk 0:02:03]}  Kh6 {[%clk 0:00:20]} 48. c4 {[%clk 0:02:00]}  f5 {[%clk 0:00:14]} 49. Qf4+ {[%clk 0:01:59]}  Kh5 {[%clk 0:00:13]} 50. Qxf5+ {[%clk 0:01:56]}  Kxh4 {[%clk 0:00:13]} 51. g3+ {[%clk 0:01:52]}  Rxg3 {[%clk 0:00:13]} 52. Qh7+ {[%clk 0:01:52]}  Kg4 {[%clk 0:00:11]} 53. Qxg8+ {[%clk 0:01:53]}  Kf4 {[%clk 0:00:07]} 54. Qxg3+ {[%clk 0:01:54]} 1-0

[Event "November 21 Late 2023"]
[Site "https://www.chess.com"]
[Date "2023.11.21"]
[Round "2"]
[White "Bashylina, Luisa"]
[Black "Goltsev, Dmitry"]
[Result "1-0"]
[Board "67"]
[TimeControl "180+1"]
[WhiteFideId "12983292"]
[BlackFideId "24176710"]
[WhiteElo "2067"]
[BlackElo "2370"]
[WhiteTeam "GER"]
[BlackTeam "RUS"]
[WhiteClock "0:00:12"]
[BlackClock "0:00:00"]

1. d4 {[%clk 0:03:00]}  e6 {[%clk 0:02:53]} 2. Nf3 {[%clk 0:03:00]}  Nf6 {[%clk 0:02:52]} 3. g3 {[%clk 0:03:00]}  b6 {[%clk 0:02:52]} 4. Bg2 {[%clk 0:03:01]}  Bb7 {[%clk 0:02:53]} 5. O-O {[%clk 0:03:00]}  Be7 {[%clk 0:02:53]} 6. Nbd2 {[%clk 0:02:57]}  O-O {[%clk 0:02:52]} 7. c4 {[%clk 0:02:56]}  a5 {[%clk 0:02:51]} 8. Re1 {[%clk 0:02:55]}  d5 {[%clk 0:02:45]} 9. Ne5 {[%clk 0:02:54]}  Nbd7 {[%clk 0:02:44]} 10. b3 {[%clk 0:02:52]}  Nxe5 {[%clk 0:02:43]} 11. dxe5 {[%clk 0:02:52]}  Ne4 {[%clk 0:02:42]} 12. Nxe4 {[%clk 0:02:49]}  dxe4 {[%clk 0:02:42]} 13. Bb2 {[%clk 0:02:49]}  Qxd1 {[%clk 0:02:30]} 14. Rexd1 {[%clk 0:02:50]}  Rfd8 {[%clk 0:02:28]} 15. e3 {[%clk 0:02:35]}  Kf8 {[%clk 0:02:14]} 16. Kf1 {[%clk 0:02:31]}  Ke8 {[%clk 0:02:04]} 17. Ke2 {[%clk 0:02:28]}  a4 {[%clk 0:02:00]} 18. Rd4 {[%clk 0:02:13]}  axb3 {[%clk 0:01:54]} 19. axb3 {[%clk 0:02:13]}  Rdb8 {[%clk 0:01:22]} 20. Rdd1 {[%clk 0:01:45]}  Bb4 {[%clk 0:01:12]} 21. Rxa8 {[%clk 0:01:39]}  Rxa8 {[%clk 0:01:11]} 22. Ra1 {[%clk 0:01:40]}  Rxa1 {[%clk 0:01:06]} 23. Bxa1 {[%clk 0:01:41]}  Ke7 {[%clk 0:01:01]} 24. Bd4 {[%clk 0:01:37]}  f5 {[%clk 0:00:58]} 25. exf6+ {[%clk 0:01:34]}  gxf6 {[%clk 0:00:59]} 26. f3 {[%clk 0:01:24]}  e5 {[%clk 0:00:35]} 27. Bb2 {[%clk 0:01:21]}  exf3+ {[%clk 0:00:31]} 28. Bxf3 {[%clk 0:01:22]}  Bc8 {[%clk 0:00:30]} 29. Bd5 {[%clk 0:01:12]}  Bg4+ {[%clk 0:00:23]} 30. Bf3 {[%clk 0:01:12]}  Bf5 {[%clk 0:00:23]} 31. g4 {[%clk 0:01:09]}  Bc2 {[%clk 0:00:22]} 32. g5 {[%clk 0:01:00]}  Bxb3 {[%clk 0:00:19]} 33. gxf6+ {[%clk 0:00:52]}  Kxf6 {[%clk 0:00:17]} 34. Kd3 {[%clk 0:00:53]}  Ba4 {[%clk 0:00:15]} 35. Be4 {[%clk 0:00:51]}  h6 {[%clk 0:00:12]} 36. Bd5 {[%clk 0:00:40]}  Bb3 {[%clk 0:00:07]} 37. e4 {[%clk 0:00:25]}  Ba4 {[%clk 0:00:05]} 38. Bc1 {[%clk 0:00:26]}  h5 {[%clk 0:00:05]} 39. Be3 {[%clk 0:00:18]}  Be8 {[%clk 0:00:05]} 40. Bf2 {[%clk 0:00:15]}  Kg5 {[%clk 0:00:05]} 41. Be6 {[%clk 0:00:16]}  Bd6 {[%clk 0:00:00]} 42. Bf5 {[%clk 0:00:12]} 1-0